fUSD/lending_fUSD_20250806
["ID","MTS","AMOUNT","RATE_DAILY","PERIOD"]
[377562269,1754442688831,-400.0,0.00036438,14]
[377562270,1754442688841,-516.14,0.00036438,14]
[377562271,1754442688850,-400.0,0.00036438,14]
[377562272,1754442688860,-400.0,0.00036438,14]
[377562273,1754442688869,-400.0,0.00036438,14]
[377562274,1754442688879,-400.0,0.00036438,14]
[377562275,1754442688889,-400.0,0.00036438,14]
[377562276,1754442688898,-400.0,0.00036438,14]
[377562277,1754442688907,-1588.96,0.00036438,14]
[377562278,1754442688917,-400.0,0.00036438,14]
[377562279,1754442688928,-400.0,0.00036438,14]
[377562280,1754442688937,-501.29,0.00036438,14]
[377562281,1754442688948,-400.0,0.00036438,14]
[377562282,1754442688957,-400.0,0.00036438,14]
[377562283,1754442688967,-400.0,0.00036438,14]
[377562284,1754442688977,-1728.93,0.00036438,14]
[377562285,1754442688986,-400.0,0.00036438,14]
[377562286,1754442688995,-842.87,0.00036438,14]
[377562287,1754442689005,-721.83,0.00036438,14]
[377562288,1754442689014,-400.0,0.00036438,14]
[377562289,1754442689024,-1400.15,0.00036438,14]
[377562290,1754442689034,-2022.66,0.00036438,14]
[377562291,1754442689043,-400.0,0.00036438,14]
[377562292,1754442689053,-400.0,0.00036438,14]
[377562293,1754442689062,-400.0,0.00036438,14]
[377562294,1754442689072,-500.0,0.00036438,30]
[377562295,1754442689081,-1814.02,0.00036438,14]
[377562296,1754442689091,-400.0,0.00036438,14]
[377562297,1754442689100,-400.0,0.00036438,14]
[377562298,1754442689110,-1569.39,0.00036438,14]
[377562299,1754442689119,-699.33,0.00036438,14]
[377562300,1754442689129,-400.0,0.00036438,14]
[377562301,1754442689139,-1178.29,0.00036438,14]
[377562302,1754442689148,-1387.5,0.00036438,14]
[377562303,1754442689158,-492.33,0.00036438,14]
[377562304,1754442689167,-400.0,0.00036438,14]
[377562305,1754442689177,-1463.21,0.00036438,14]
[377562306,1754442689186,-400.0,0.00036438,14]
[377562307,1754442689195,-544.52,0.00036438,14]
[377562308,1754442689205,-400.0,0.00036438,14]
[377562309,1754442689584,-503.4,0.00036438,14]
[377562310,1754442689595,-400.0,0.00036438,14]
[377562311,1754442689604,-400.1,0.00036438,14]
[377562312,1754442689614,-1643.62,0.00036438,14]
[377562313,1754442689623,-1833.83,0.00036438,14]
[377562314,1754442689633,-1450.05,0.00036438,14]
[377562315,1754442689643,-847.42,0.00036438,14]
[377562316,1754442689652,-400.0,0.00036438,14]
[377562317,1754442689662,-483.54,0.00036438,14]
[377562318,1754442689672,-400.0,0.00036438,14]
[377562319,1754442689681,-1132.33,0.00036438,14]
[377562320,1754442689691,-400.0,0.00036438,14]
[377562321,1754442689700,-1000.0,0.00036438,30]
[377562322,1754442689709,-400.0,0.00036438,14]
[377562323,1754442689718,-404.42,0.00036438,14]
[377562324,1754442689728,-400.0,0.00036438,14]
[377562325,1754442689737,-400.0,0.00036438,14]
[377562326,1754442689747,-400.0,0.00036438,14]
[377562327,1754442689757,-1097.1,0.00036438,14]
[377562328,1754442689767,-400.0,0.00036438,14]
[377562329,1754442689776,-400.0,0.00036438,14]
[377562330,1754442689785,-2325.25,0.00036438,14]
[377562331,1754442689795,-1903.94,0.00036438,14]
[377562332,1754442689805,-1533.11,0.00036438,14]
[377562333,1754442689814,-660.51,0.00036438,14]
[377562334,1754442689824,-527.04985166,0.00036438,14]
[377562335,1754442689834,-450.03,0.00036438,14]
[377562336,1754442689844,-460.28,0.00036438,14]
[377562337,1754442689855,-400.0,0.00036438,14]
[377562338,1754442689866,-400.0,0.00036438,14]
[377562339,1754442689875,-400.0,0.00036438,14]
[377562340,1754442689885,-1254.32,0.00036438,14]
[377562341,1754442689895,-1717.8,0.00036438,14]
[377562342,1754442689904,-400.0,0.00036438,14]
[377562343,1754442689914,-400.0,0.00036438,14]
[377562344,1754442689927,-400.0,0.00036438,14]
[377562345,1754442689936,-1428.48,0.00036438,14]
[377562346,1754442689945,-733.28,0.00036438,14]
[377562347,1754442689955,-400.0,0.00036438,14]
[377562348,1754442689963,-400.0,0.00036438,14]
[377562349,1754442689973,-400.0,0.00036438,14]
[377562350,1754442689982,-827.0,0.00036438,14]
[377562351,1754442689991,-400.0,0.00036438,14]
[377562352,1754442690000,-470.72,0.00036438,14]
[377562353,1754442690010,-400.0,0.00036438,14]
[377562354,1754442690019,-400.0,0.00036438,14]
[377562355,1754442690029,-424.41,0.00036438,14]
[377562356,1754442690039,-1695.19,0.00036438,14]
[377562357,1754442690050,-1633.57,0.00036438,14]
[377562358,1754442690060,-1386.71,0.00036438,14]
[377562359,1754442690069,-526.05,0.00036438,14]
[377562360,1754442690079,-400.0,0.00036438,14]
[377562361,1754442690088,-153.46,0.00036438,14]
[377562362,1754442690097,-1774.92,0.00036438,14]
[377562363,1754442690107,-400.0,0.00036438,14]
[377562364,1754442690116,-523.37,0.00036438,14]
[377562365,1754442690126,-1821.42,0.00036438,14]
[377562366,1754442690135,-400.0,0.00036438,14]
[377562367,1754442690144,-400.0,0.00036438,14]
[377562368,1754442690154,-537.16,0.00036438,14]
[377562369,1754442690163,-1326.6,0.00036438,14]
[377562370,1754442690173,-403.11,0.00036438,14]
[377562371,1754442690182,-1845.51,0.00036438,14]
[377562372,1754442690192,-406.36,0.00036438,14]
[377562373,1754442690201,-400.0,0.00036438,14]
[377562374,1754442690210,-547.22,0.00036438,14]
[377562375,1754442690221,-902.18,0.00036438,14]
[377562376,1754442690231,-400.0,0.00036438,14]
[377562377,1754442690241,-400.0,0.00036438,14]
[377562378,1754442690250,-400.0,0.00036438,14]
[377562379,1754442690260,-1145.28,0.00036438,14]
[377562380,1754442690270,-553.06,0.00036438,14]
[377562381,1754442690279,-400.0,0.00036438,14]
[377562382,1754442690289,-400.0,0.00036438,14]
[377562383,1754442690301,-2832.17,0.00036438,14]
[377562384,1754442690312,-2180.85,0.00036438,14]
[377562385,1754442690328,-2243.29,0.00036438,14]
[377562386,1754442690338,-1098.87,0.00036438,14]
[377562387,1754442690347,-400.0,0.00036438,14]
[377562388,1754442690356,-400.0,0.00036438,14]
[377562389,1754442690365,-1583.64,0.00036438,14]
[377562390,1754442690374,-1529.8,0.00036438,14]
[377562391,1754442690384,-400.0,0.00036438,14]
[377562392,1754442690393,-400.0,0.00036438,14]
[377562393,1754442690403,-400.0,0.00036438,14]
[377562394,1754442690412,-1102.58,0.00036438,14]
[377562395,1754442690422,-400.0,0.00036438,14]
[377562396,1754442690432,-1658.45,0.00036438,14]
[377562397,1754442690442,-400.0,0.00036438,14]
[377562398,1754442690451,-977.09,0.00036438,14]
[377562399,1754442690460,-473.22,0.00036438,14]
[377562400,1754442690470,-1718.03,0.00036438,14]
[377562401,1754442690480,-400.0,0.00036438,14]
[377562402,1754442690489,-400.0,0.00036438,14]
[377562403,1754442690499,-400.0,0.00036438,14]
[377562404,1754442690508,-1030.9,0.00036438,14]
[377562405,1754442690517,-400.0,0.00036438,14]
[377562406,1754442690527,-799.93,0.00036438,14]
[377562407,1754442690536,-400.0,0.00036438,14]
[377562408,1754442690546,-1782.82,0.00036438,14]
[377562409,1754442690559,-400.0,0.00036438,14]
[377562410,1754442690569,-1638.95,0.00036438,14]
[377562411,1754442690578,-625.21,0.00036438,14]
[377562412,1754442690588,-400.0,0.00036438,14]
[377562413,1754442690597,-400.0,0.00036438,14]
[377562414,1754442690607,-400.0,0.00036438,14]
[377562415,1754442690616,-2528.78,0.00036438,2]
[377562416,1754442690625,-1493.49,0.00036438,14]
[377562417,1754442690634,-2036.4,0.00036438,14]
[377562418,1754442690644,-410.9,0.00036438,14]
[377562419,1754442690653,-400.0,0.00036438,14]
[377562420,1754442690662,-400.0,0.00036438,14]
[377562421,1754442690672,-400.0,0.00036438,14]
[377562422,1754442690682,-1210.7,0.00036438,14]
[377562423,1754442690692,-10006.13,0.00036438,14]
[377562424,1754442690701,-1629.9,0.00036438,14]
[377562425,1754442690711,-400.0,0.00036438,14]
[377562426,1754442690720,-1492.93,0.00036438,14]
[377562427,1754442690731,-1167.12,0.00036438,14]
[377562428,1754442690741,-539.61,0.00036438,14]
[377562429,1754442690751,-1588.35,0.00036438,14]
[377562430,1754442690761,-1152.25,0.00036438,14]
[377562431,1754442690770,-1739.77,0.00036438,14]
[377562432,1754442690779,-400.0,0.00036438,14]
[377562433,1754442690789,-665.27,0.00036438,14]
[377562434,1754442690798,-400.0,0.00036438,14]
[377562435,1754442690807,-400.0,0.00036438,14]
[377562436,1754442690816,-1156.38,0.00036438,14]
[377562437,1754442690826,-400.0,0.00036438,14]
[377562438,1754442690835,-400.0,0.00036438,14]
[377562439,1754442690844,-1235.39,0.00036438,14]
[377562440,1754442690854,-400.0,0.00036438,14]
[377562441,1754442690863,-400.0,0.00036438,14]
[377562442,1754442690872,-1042.08,0.00036438,14]
[377562443,1754442690881,-555.31,0.00036438,14]
[377562444,1754442690892,-400.0,0.00036438,14]
[377562445,1754442690902,-771.19,0.00036438,14]
[377562446,1754442690912,-1645.48,0.00036438,14]
[377562447,1754442690921,-610.62,0.00036438,14]
[377562448,1754442690931,-2345.36,0.00036438,14]
[377562449,1754442690941,-855.1,0.00036438,14]
[377562450,1754442690951,-1674.52,0.00036438,14]
[377562451,1754442690960,-400.0,0.00036438,14]
[377562452,1754442690969,-571.85,0.00036438,14]
[377562453,1754442690978,-901.39,0.00036438,14]
[377562454,1754442690987,-1738.31,0.00036438,14]
[377562455,1754442690996,-400.0,0.00036438,14]
[377562456,1754442691006,-2776.05,0.00036438,14]
[377562457,1754442691015,-640.36,0.00036438,14]
[377562458,1754442691025,-421.1,0.00036438,14]
[377562459,1754442691035,-1250.35,0.00036438,14]
[377562460,1754442691046,-648.11,0.00036438,14]
[377562461,1754442691055,-400.0,0.00036438,14]
[377562462,1754442691065,-648.31,0.00036438,14]
[377562463,1754442691074,-400.0,0.00036438,14]
[377562464,1754442691084,-400.0,0.00036438,14]
[377562465,1754442691093,-541.69,0.00036438,14]
[377562466,1754442691102,-400.0,0.00036438,14]
[377562467,1754442691111,-481.1,0.00036438,14]
[377562468,1754442691121,-693.82,0.00036438,14]
[377562469,1754442691130,-400.0,0.00036438,14]
[377562470,1754442691140,-1143.9,0.00036438,14]
[377562471,1754442691150,-1843.83,0.00036438,14]
[377562472,1754442691159,-1216.09,0.00036438,14]
[377562473,1754442691169,-400.0,0.00036438,14]
[377562474,1754442691182,-748.15,0.00036438,14]
[377562475,1754442691191,-2563.26,0.00036438,14]
[377562476,1754442691200,-929.85,0.00036438,14]
[377562477,1754442691210,-400.0,0.00036438,14]
[377562478,1754442691219,-960.91,0.00036438,14]
[377562479,1754442691231,-953.28,0.00036438,14]
[377562480,1754442691241,-1108.19,0.00036438,14]
[377562481,1754442691250,-1077.76,0.00036438,14]
[377562482,1754442691260,-579.13,0.00036438,14]
[377562483,1754442691271,-3361.78,0.00036438,14]
[377562484,1754442691280,-400.0,0.00036438,14]
[377562485,1754442691290,-718.46,0.00036438,14]
[377562486,1754442691301,-451.54,0.00036438,14]
[377562487,1754442691318,-877.04,0.00036438,14]
[377562488,1754442691329,-536.36,0.00036438,14]
[377562489,1754442691338,-539.53502556,0.00036438,14]
[377562490,1754442691348,-663.47,0.00036438,14]
[377562491,1754442691357,-2656.71,0.00036438,14]
[377562492,1754442691367,-400.0,0.00036438,14]
[377562493,1754442691377,-759.76,0.00036438,14]
[377562494,1754442691390,-1728.96,0.00036438,14]
[377562495,1754442691399,-400.0,0.00036438,14]
[377562496,1754442691409,-400.0,0.00036438,14]
[377562497,1754442691419,-400.0,0.00036438,14]
[377562498,1754442691430,-400.0,0.00036438,14]
[377562499,1754442691439,-1511.99,0.00036438,14]
[377562500,1754442691449,-1017.31,0.00036438,14]
[377562501,1754442691459,-1815.4,0.00036438,14]
[377562502,1754442691468,-1422.48,0.00036438,14]
[377562503,1754442691478,-400.0,0.00036438,14]
[377562504,1754442691488,-400.0,0.00036438,14]
[377562505,1754442691498,-400.0,0.00036438,14]
[377562506,1754442691508,-854.48,0.00036438,14]
[377562507,1754442691518,-1276.47,0.00036438,14]
[377562508,1754442691528,-400.0,0.00036438,14]
[377562509,1754442691544,-1666.11,0.00036438,14]
[377562510,1754442691555,-400.0,0.00036438,14]
[377562511,1754442691566,-400.0,0.00036438,14]
[377562512,1754442691576,-1981.27,0.00036438,14]
[377562513,1754442691585,-400.0,0.00036438,14]
[377562514,1754442691595,-400.0,0.00036438,14]
[377562515,1754442691604,-400.0,0.00036438,14]
[377562516,1754442691613,-400.0,0.00036438,14]
[377562517,1754442691623,-917.59,0.00036438,14]
[377562518,1754442691632,-400.0,0.00036438,14]
[377562519,1754442691641,-400.0,0.00036438,14]
[377562520,1754442691650,-1423.17,0.00036438,14]
[377562521,1754442691659,-635.16,0.00036438,14]
[377562522,1754442691668,-225.55988944,0.00036438,14]
[377562523,1754442691677,-400.0,0.00036438,14]
[377562524,1754442691687,-1602.49,0.00036438,14]
[377562525,1754442691697,-400.0,0.00036438,14]
[377562526,1754442691706,-462.48,0.00036438,14]
[377562527,1754442691716,-1993.92,0.00036438,14]
[377562528,1754442691725,-400.0,0.00036438,14]
[377562529,1754442691735,-400.0,0.00036438,14]
[377562530,1754442691744,-400.0,0.00036438,14]
[377562531,1754442691754,-400.0,0.00036438,14]
[377562532,1754442691763,-1745.29,0.00036438,14]
[377562533,1754442691773,-400.0,0.00036438,7]
[377562534,1754442691782,-1505.87,0.00036438,14]
[377562535,1754442691791,-400.0,0.00036438,14]
[377562536,1754442691801,-714.94,0.00036438,14]
[377562537,1754442691811,-400.0,0.00036438,14]
[377562538,1754442691820,-400.0,0.00036438,14]
[377562539,1754442691829,-400.0,0.00036438,14]
[377562540,1754442691839,-400.0,0.00036438,14]
[377562541,1754442691848,-400.0,0.00036438,14]
[377562542,1754442691857,-1862.67,0.00036438,14]
[377562543,1754442691866,-1330.24,0.00036438,14]
[377562544,1754442691875,-1500.66,0.00036438,14]
[377562545,1754442691884,-1806.35,0.00036438,14]
[377562546,1754442691893,-400.0,0.00036438,14]
[377562547,1754442691903,-406.0856467,0.00036438,14]
[377562548,1754442691911,-400.0,0.00036438,14]
[377562549,1754442691921,-1681.57,0.00036438,14]
[377562550,1754442692034,-1855.83,0.00036438,14]
[377562551,1754442692043,-400.0,0.00036438,14]
[377562552,1754442692052,-939.15,0.00036438,14]
[377562553,1754442692062,-400.0,0.00036438,14]
[377562554,1754442692071,-400.0,0.00036438,14]
[377562555,1754442692080,-400.0,0.00036438,14]
[377562556,1754442692089,-1183.54,0.00036438,14]
[377562557,1754442692098,-433.49,0.00036438,14]
[377562558,1754442692107,-400.0,0.00036438,14]
[377562559,1754442692116,-1796.76,0.00036438,14]
[377562560,1754442692125,-540.41,0.00036438,14]
[377562561,1754442692134,-400.0,0.00036438,14]
[377562562,1754442692143,-426.54,0.00036438,14]
[377562563,1754442692152,-400.0,0.00036438,14]
[377562564,1754442692161,-400.0,0.00036438,14]
[377562565,1754442692170,-1268.78,0.00036438,14]
[377562566,1754442692180,-783.57,0.00036438,14]
[377562567,1754442692189,-947.41,0.00036438,14]
[377562568,1754442692199,-400.0,0.00036438,14]
[377562569,1754442692209,-1648.95,0.00036438,14]
[377562570,1754442692222,-400.0,0.00036438,14]
[377562571,1754442692232,-1722.77,0.00036438,14]
[377562572,1754442692242,-1349.25,0.00036438,14]
[377562573,1754442692251,-400.0,0.00036438,14]
[377562574,1754442692259,-400.0,0.00036438,14]
[377562575,1754442692270,-609.22,0.00036438,14]
[377562576,1754442692279,-460.65,0.00036438,14]
[377562577,1754442692288,-607.57,0.00036438,14]
[377562578,1754442692300,-1489.1,0.00036438,14]
[377562579,1754442692311,-400.0,0.00036438,14]
[377562580,1754442692320,-1643.92,0.00036438,14]
[377562581,1754442692329,-3508.69,0.00036438,14]
[377562582,1754442692338,-400.0,0.00036438,14]
[377562583,1754442692347,-1560.94,0.00036438,14]
[377562584,1754442692356,-1475.19,0.00036438,14]
[377562585,1754442692366,-1761.36,0.00036438,14]
[377562586,1754442692375,-3179.65,0.00036438,14]
[377562587,1754442692384,-1697.46,0.00036438,14]
[377562588,1754442692393,-400.0,0.00036438,14]
[377562589,1754442692402,-480.99360296,0.00036438,14]
[377562590,1754442692411,-400.0,0.00036438,14]
[377562591,1754442692420,-1809.63,0.00036438,14]
[377562592,1754442692431,-400.0,0.00036438,14]
[377562593,1754442692440,-400.0,0.00036438,14]
[377562594,1754442692449,-400.0,0.00036438,14]
[377562595,1754442692459,-400.0,0.00036438,14]
[377562596,1754442692469,-996.45,0.00036438,14]
[377562597,1754442692477,-786.64,0.00036438,14]
[377562598,1754442692487,-1813.1,0.00036438,14]
[377562599,1754442692496,-1549.43,0.00036438,14]
[377562600,1754442692506,-978.82,0.00036438,14]
[377562601,1754442692515,-452.79,0.00036438,14]
[377562602,1754442692524,-1973.22,0.00036438,14]
[377562603,1754442692534,-400.0,0.00036438,14]
[377562604,1754442692545,-1411.16,0.00036438,14]
[377562605,1754442692554,-400.0,0.00036438,14]
[377562606,1754442692563,-177.81490983,0.00036438,14]
[377562607,1754442692573,-400.0,0.00036438,14]
[377562608,1754442692582,-1309.23,0.00036438,14]
[377562609,1754442692591,-1898.39,0.00036438,14]
[377562610,1754442692601,-1356.93,0.00036438,14]
[377562611,1754442692610,-400.0,0.00036438,14]
[377562612,1754442692619,-400.0,0.00036438,14]
[377562613,1754442692628,-400.0,0.00036438,14]
[377562614,1754442692637,-1218.86,0.00036438,14]
[377562615,1754442692646,-517.04,0.00036438,14]
[377562616,1754442692655,-400.0,0.00036438,14]
[377562617,1754442692664,-400.0,0.00036438,14]
[377562618,1754442692673,-1686.02,0.00036438,14]
[377562619,1754442692685,-613.23,0.00036438,14]
[377562620,1754442692694,-400.0,0.00036438,14]
[377562621,1754442692703,-1577.44,0.00036438,14]
[377562622,1754442692712,-2936.53,0.00036438,14]
[377562623,1754442692720,-400.0,0.00036438,14]
[377562624,1754442692729,-400.0,0.00036438,14]
[377562625,1754442692738,-400.0,0.00036438,14]
[377562626,1754442692747,-1064.45,0.00036438,14]
[377562627,1754442692756,-2278.06,0.00036438,14]
[377562628,1754442692765,-400.0,0.00036438,14]
[377562629,1754442692774,-400.0,0.00036438,14]
[377562630,1754442692783,-1099.07,0.00036438,14]
[377562631,1754442692792,-400.0,0.00036438,14]
[377562632,1754442692801,-1262.49,0.00036438,14]
[377562633,1754442692810,-400.0,0.00036438,14]
[377562634,1754442692819,-400.0,0.00036438,14]
[377562635,1754442692828,-1786.24,0.00036438,14]
[377562636,1754442692838,-1929.27,0.00036438,14]
[377562637,1754442692847,-881.4,0.00036438,14]
[377562638,1754442692857,-400.0,0.00036438,14]
[377562639,1754442692866,-507.98,0.00036438,14]
[377562640,1754442692875,-400.0,0.00036438,14]
[377562641,1754442692885,-400.0,0.00036438,14]
[377562642,1754442692894,-1377.54,0.00036438,14]
[377562643,1754442692903,-458.1,0.00036438,14]
[377562644,1754442692912,-1137.9,0.00036438,14]
[377562645,1754442692922,-1207.69,0.00036438,14]
[377562646,1754442692933,-400.0,0.00036438,14]
[377562647,1754442692942,-997.78,0.00036438,14]
[377562648,1754442692952,-1750.37,0.00036438,14]
[377562649,1754442692961,-1730.65,0.00036438,14]
[377562650,1754442692970,-1365.84,0.00036438,14]
[377562651,1754442692980,-400.0,0.00036438,14]
[377562652,1754442692989,-1000.56,0.00036438,14]
[377562653,1754442692998,-2341.23,0.00036438,14]
[377562654,1754442693008,-400.0,0.00036438,14]
[377562655,1754442693017,-400.0,0.00036438,14]
[377562656,1754442693026,-2067.81,0.00036438,14]
[377562657,1754442693035,-520.16,0.00036438,14]
[377562658,1754442693045,-1930.61,0.00036438,14]
[377562659,1754442693055,-3777.24,0.00036438,14]
[377562660,1754442693066,-400.0,0.00036438,14]
[377562661,1754442693075,-400.0,0.00036438,14]
[377562662,1754442693085,-400.0,0.00036438,14]
[377562663,1754442693095,-1228.29,0.00036438,14]
[377562664,1754442693104,-400.0,0.00036438,14]
[377562665,1754442693114,-911.04,0.00036438,14]
[377562666,1754442693123,-1576.28,0.00036438,14]
[377562667,1754442693133,-950.59,0.00036438,14]
[377562668,1754442693143,-823.06,0.00036438,14]
[377562669,1754442693152,-1595.25,0.00036438,14]
[377562670,1754442693161,-1716.12,0.00036438,14]
[377562671,1754442693170,-978.13,0.00036438,14]
[377562672,1754442693182,-400.0,0.00036438,14]
[377562673,1754442693191,-500.0,0.00036438,14]
[377562674,1754442693201,-649.47,0.00036438,14]
[377562675,1754442693211,-534.41212987,0.00036438,14]
[377562676,1754442693221,-1326.1,0.00036438,14]
[377562677,1754442693233,-400.0,0.00036438,14]
[377562678,1754442693243,-400.0,0.00036438,14]
[377562679,1754442693253,-400.0,0.00036438,14]
[377562680,1754442693264,-400.0,0.00036438,14]
[377562681,1754442693273,-1901.09,0.00036438,14]
[377562682,1754442693284,-651.8,0.00036438,14]
[377562683,1754442693295,-2522.71,0.00036438,14]
[377562684,1754442693305,-995.31,0.00036438,14]
[377562685,1754442693316,-400.0,0.00036438,14]
[377562686,1754442693326,-1221.21,0.00036438,14]
[377562687,1754442693335,-1954.85,0.00036438,14]
[377562688,1754442693345,-1654.29,0.00036438,14]
[377562689,1754442693355,-400.0,0.00036438,14]
[377562690,1754442693365,-400.0,0.00036438,14]
[377562691,1754442693375,-400.0,0.00036438,14]
[377562692,1754442693384,-400.0,0.00036438,14]
[377562693,1754442693394,-400.0,0.00036438,14]
[377562694,1754442693404,-460.29,0.00036438,14]
[377562695,1754442693413,-151.0,0.00036438,7]
[377562696,1754442693423,-400.0,0.00036438,14]
[377562697,1754442693434,-378.14826386,0.00036438,14]
[377562698,1754442693443,-1864.66,0.00036438,14]
[377562699,1754442693453,-1554.97,0.00036438,14]
[377562700,1754442693462,-400.0,0.00036438,14]
[377562701,1754442693472,-2171.6,0.00036438,14]
[377562702,1754442693482,-1890.83,0.00036438,14]
[377562703,1754442693492,-1637.12,0.00036438,14]
[377562704,1754442693501,-1931.75,0.00036438,14]
[377562705,1754442693510,-675.89,0.00036438,14]
[377562706,1754442693520,-1957.27,0.00036438,14]
[377562707,1754442693530,-966.76,0.00036438,14]
[377562708,1754442693540,-569.93,0.00036438,14]
[377562709,1754442693550,-400.0,0.00036438,14]
[377562710,1754442693560,-1186.55,0.00036438,14]
[377562711,1754442693569,-1734.52,0.00036438,14]
[377562712,1754442693579,-222.77048269,0.00036438,14]
[377562713,1754442693588,-1966.61,0.00036438,14]
[377562714,1754442693597,-151.0,0.00036438,7]
[377562715,1754442693607,-400.0,0.00036438,14]
[377562716,1754442693616,-2127.72,0.00036438,14]
[377562717,1754442693626,-721.87,0.00036438,14]
[377562718,1754442693636,-565.93,0.00036438,14]
[377562719,1754442693645,-400.0,0.00036438,14]
[377562720,1754442693654,-926.78,0.00036438,14]
[377562721,1754442693663,-400.0,0.00036438,14]
[377562722,1754442693672,-1157.08,0.00036438,14]
[377562723,1754442693682,-1299.26,0.00036438,14]
[377562724,1754442693691,-579.8,0.00036438,14]
[377562725,1754442693700,-400.0,0.00036438,14]
[377562726,1754442693709,-400.0,0.00036438,14]
[377562727,1754442693719,-1657.04,0.00036438,14]
[377562728,1754442693729,-820.22,0.00036438,14]
[377562729,1754442693738,-400.0,0.00036438,14]
[377562730,1754442693748,-1778.69,0.00036438,14]
[377562731,1754442693758,-400.0,0.00036438,14]
[377562732,1754442693768,-1516.87,0.00036438,14]
[377562733,1754442693778,-727.11,0.00036438,14]
[377562734,1754442693787,-400.0,0.00036438,14]
[377562735,1754442693797,-400.0,0.00036438,14]
[377562736,1754442693807,-1676.54,0.00036438,14]
[377562737,1754442693816,-400.0,0.00036438,14]
[377562738,1754442693826,-400.0,0.00036438,14]
[377562739,1754442693836,-1762.97,0.00036438,14]
[377562740,1754442693846,-1555.03,0.00036438,14]
[377562741,1754442693855,-400.0,0.00036438,14]
[377562742,1754442693866,-2031.94,0.00036438,14]
[377562743,1754442693875,-400.0,0.00036438,14]
[377562744,1754442693884,-760.26,0.00036438,14]
[377562745,1754442693894,-400.0,0.00036438,14]
[377562746,1754442693904,-2264.12,0.00036438,14]
[377562747,1754442693914,-400.0,0.00036438,14]
[377562748,1754442693924,-400.0,0.00036438,14]
[377562749,1754442693935,-930.41,0.00036438,14]
[377562750,1754442693945,-406.98,0.00036438,14]
[377562751,1754442693954,-786.19,0.00036438,14]
[377562752,1754442693964,-524.56,0.00036438,14]
[377562753,1754442693973,-531.32,0.00036438,14]
[377562754,1754442693983,-589.63,0.00036438,14]
[377562755,1754442693992,-1026.06,0.00036438,14]
[377562756,1754442694001,-400.0,0.00036438,14]
[377562757,1754442694011,-1144.28,0.00036438,14]
[377562758,1754442694020,-400.0,0.00036438,14]
[377562759,1754442694029,-400.0,0.00036438,14]
[377562760,1754442694039,-400.0,0.00036438,14]
[377562761,1754442694049,-400.0,0.00036438,14]
[377562762,1754442694059,-400.0,0.00036438,14]
[377562763,1754442694069,-400.0,0.00036438,14]
[377562764,1754442694079,-688.8,0.00036438,14]
[377562765,1754442694088,-2483.16,0.00036438,14]
[377562766,1754442694100,-2523.61,0.00036438,14]
[377562767,1754442694109,-400.0,0.00036438,14]
[377562768,1754442694118,-400.0,0.00036438,14]